[Event "*** Qualifier 4: Titled Tuesday 3|2 Blitz"]
[Site "Chess.com"]
[Date "2017.04.25"]
[Round "2"]
[White "yurisolo"]
[Black "Hikaru"]
[Result "0-1"]
[WhiteElo "2472"]
[BlackElo "2954"]
[TimeControl "180+2"]
[EndTime "13:19:48 PDT"]
[Termination "Hikaru won by checkmate"]

1. e4 {[%clk 0:03:02]} 1... e6 {[%clk 0:02:59.8]} 2. d4 {[%clk 0:03:03]} 2... d5
{[%clk 0:02:56.4]} 3. Nc3 {[%clk 0:03:04.4]} 3... Nf6 {[%clk 0:02:54.8]} 4. e5
{[%clk 0:03:05.5]} 4... Nfd7 {[%clk 0:02:54.4]} 5. f4 {[%clk 0:03:06.9]} 5... c5
{[%clk 0:02:55.6]} 6. Nf3 {[%clk 0:03:08.4]} 6... a6 {[%clk 0:02:57.2]} 7. Be3
{[%clk 0:03:09.8]} 7... Qb6 {[%clk 0:02:55.1]} 8. Na4 {[%clk 0:02:57.4]} 8...
Qa5+ {[%clk 0:02:42.1]} 9. c3 {[%clk 0:02:57.9]} 9... cxd4 {[%clk 0:02:43.6]}
10. Nxd4 {[%clk 0:02:45.7]} 10... b5 {[%clk 0:02:39.1]} 11. b4 {[%clk
0:02:18.3]} 11... Qxa4 {[%clk 0:02:20.2]} 12. Qh5 {[%clk 0:02:05.9]} 12... g6
{[%clk 0:02:16.3]} 13. Qh3 {[%clk 0:02:05.4]} 13... Qa3 {[%clk 0:02:05]} 14. Bc1
{[%clk 0:02:00.9]} 14... Qa4 {[%clk 0:02:06]} 15. Bb2 {[%clk 0:00:44.9]} 15...
Nb6 {[%clk 0:01:54.1]} 16. Be2 {[%clk 0:00:43.4]} 16... Nc4 {[%clk 0:01:55.1]}
17. Bd1 {[%clk 0:00:42.5]} 17... Nxb2 {[%clk 0:01:55.7]} 18. Bxa4 {[%clk
0:00:43.5]} 18... Nxa4 {[%clk 0:01:54]} 19. O-O {[%clk 0:00:44.7]} 19... Bg7
{[%clk 0:01:55.1]} 20. Rae1 {[%clk 0:00:37.8]} 20... O-O {[%clk 0:01:54.1]} 21.
g4 {[%clk 0:00:38.3]} 21... Nd7 {[%clk 0:01:53.4]} 22. f5 {[%clk 0:00:37]} 22...
exf5 {[%clk 0:01:54.1]} 23. e6 {[%clk 0:00:31.6]} 23... fxg4 {[%clk 0:01:55]}
24. exf7+ {[%clk 0:00:27.5]} 24... Rxf7 {[%clk 0:01:56.4]} 25. Qxg4 {[%clk
0:00:24.6]} 25... Nf6 {[%clk 0:01:48.1]} 26. Qg2 {[%clk 0:00:22.6]} 26... Nxc3
{[%clk 0:01:46.3]} 27. Rc1 {[%clk 0:00:12.6]} 27... Nfe4 {[%clk 0:01:46.2]} 28.
Rxf7 {[%clk 0:00:12.7]} 28... Bxd4+ {[%clk 0:01:44.5]} 29. Kh1 {[%clk
0:00:13.6]} 29... Kxf7 {[%clk 0:01:45.3]} 30. Rf1+ {[%clk 0:00:14]} 30... Bf5
{[%clk 0:01:46.2]} 31. Qh3 {[%clk 0:00:15]} 31... Nf2+ {[%clk 0:01:42.8]} 32.
Rxf2 {[%clk 0:00:15.8]} 32... Bxf2 {[%clk 0:01:44.7]} 33. Qf3 {[%clk 0:00:13.7]}
33... Bb6 {[%clk 0:01:41]} 34. h4 {[%clk 0:00:12.7]} 34... Rc8 {[%clk
0:01:40.8]} 35. Kh2 {[%clk 0:00:13.5]} 35... Rc4 {[%clk 0:01:41.9]} 36. h5
{[%clk 0:00:12.2]} 36... Rh4+ {[%clk 0:01:41.3]} 37. Kg3 {[%clk 0:00:12.6]}
37... Ne4+ {[%clk 0:01:40.2]} 38. Kxh4 {[%clk 0:00:13.5]} 38... g5# {[%clk
0:01:41.4]} 0-1

[Event "*** Qualifier 4: Titled Tuesday 3|2 Blitz"]
[Site "Chess.com"]
[Date "2017.04.25"]
[Round "2"]
[White "MateusViageiro"]
[Black "johnathan113"]
[Result "0-1"]
[WhiteElo "2270"]
[BlackElo "2455"]
[TimeControl "180+2"]
[EndTime "13:20:03 PDT"]
[Termination "johnathan113 won by resignation"]

1. Nf3 {[%clk 0:03:02]} 1... Nf6 {[%clk 0:02:59.7]} 2. g3 {[%clk 0:03:03.1]}
2... g6 {[%clk 0:03:00.6]} 3. Bg2 {[%clk 0:03:04.6]} 3... Bg7 {[%clk 0:03:02.5]}
4. d4 {[%clk 0:03:05.9]} 4... O-O {[%clk 0:03:04.4]} 5. c4 {[%clk 0:03:02.5]}
5... d6 {[%clk 0:03:05.6]} 6. O-O {[%clk 0:03:03.5]} 6... Nc6 {[%clk 0:03:07.5]}
7. Nc3 {[%clk 0:03:04.7]} 7... a6 {[%clk 0:03:08.8]} 8. e4 {[%clk 0:03:05.7]}
8... Bg4 {[%clk 0:03:09.2]} 9. h3 {[%clk 0:03:03.5]} 9... Bxf3 {[%clk
0:03:10.3]} 10. Bxf3 {[%clk 0:03:04.7]} 10... Nd7 {[%clk 0:03:12.2]} 11. Be3
{[%clk 0:03:04.5]} 11... e5 {[%clk 0:03:13.1]} 12. d5 {[%clk 0:03:04.9]} 12...
Nd4 {[%clk 0:03:14.4]} 13. Bg2 {[%clk 0:03:06]} 13... c5 {[%clk 0:03:15.6]} 14.
dxc6 {[%clk 0:03:06.4]} 14... bxc6 {[%clk 0:03:17.5]} 15. Ne2 {[%clk 0:03:06.6]}
15... c5 {[%clk 0:03:16.1]} 16. Nc3 {[%clk 0:03:07.4]} 16... Nb6 {[%clk
0:03:10.8]} 17. b3 {[%clk 0:03:07.7]} 17... a5 {[%clk 0:03:12.1]} 18. a4 {[%clk
0:03:06.5]} 18... Rb8 {[%clk 0:03:11.6]} 19. Rb1 {[%clk 0:03:06.8]} 19... Kh8
{[%clk 0:03:11.6]} 20. Nb5 {[%clk 0:03:07.8]} 20... f5 {[%clk 0:03:06]} 21. exf5
{[%clk 0:03:07.7]} 21... gxf5 {[%clk 0:03:07.9]} 22. f4 {[%clk 0:03:08.7]} 22...
Qe7 {[%clk 0:02:51.3]} 23. Re1 {[%clk 0:03:07.8]} 23... Rg8 {[%clk 0:02:47.1]}
24. Bxd4 {[%clk 0:03:01.5]} 24... cxd4 {[%clk 0:02:45.7]} 25. Nxd4 {[%clk
0:03:01.6]} 25... Qf6 {[%clk 0:02:41.5]} 26. Nb5 {[%clk 0:02:57.7]} 26... exf4
{[%clk 0:02:39.3]} 27. gxf4 {[%clk 0:02:58]} 27... Rbd8 {[%clk 0:02:33.7]} 28.
Qf3 {[%clk 0:02:55.2]} 28... d5 {[%clk 0:02:29]} 29. c5 {[%clk 0:02:54.5]} 29...
Nd7 {[%clk 0:02:26.9]} 30. c6 {[%clk 0:02:54.2]} 30... Qxc6 {[%clk 0:02:26.3]}
31. Qxd5 {[%clk 0:02:51.7]} 31... Qg6 {[%clk 0:02:14.4]} 32. Re6 {[%clk
0:02:44.3]} 32... Qg3 {[%clk 0:01:53.1]} 33. Qf3 {[%clk 0:02:27.6]} 33... Qxf3
{[%clk 0:01:39.1]} 34. Bxf3 {[%clk 0:02:28.1]} 34... Nc5 {[%clk 0:01:41]} 35.
Re2 {[%clk 0:02:24.1]} 35... Nd3 {[%clk 0:01:35.6]} 36. Kh1 {[%clk 0:01:57.8]}
36... Nxf4 {[%clk 0:01:34.4]} 37. Rh2 {[%clk 0:01:57.7]} 37... Be5 {[%clk
0:01:22.4]} 38. h4 {[%clk 0:01:51.5]} 38... Rd3 {[%clk 0:01:14.5]} 39. Be2
{[%clk 0:01:50.3]} 39... Nxe2 {[%clk 0:01:08.2]} 40. Re1 {[%clk 0:01:40.2]}
40... Ng3+ {[%clk 0:01:07.6]} 41. Kg2 {[%clk 0:01:40.2]} 41... Ne4+ {[%clk
0:01:08]} 42. Kh1 {[%clk 0:01:40.1]} 42... Bxh2 {[%clk 0:01:05.6]} 43. Kxh2
{[%clk 0:01:40.8]} 43... Rd2+ {[%clk 0:01:03.8]} 44. Kh1 {[%clk 0:01:40.8]}
44... Nf2+ {[%clk 0:00:59.6]} 45. Kh2 {[%clk 0:01:41]} 45... Nd3+ {[%clk
0:01:01]} 0-1

[Event "*** Qualifier 4: Titled Tuesday 3|2 Blitz"]
[Site "Chess.com"]
[Date "2017.04.25"]
[Round "2"]
[White "Gordima"]
[Black "ChristopherYoo"]
[Result "1-0"]
[WhiteElo "2506"]
[BlackElo "2269"]
[TimeControl "180+2"]
[EndTime "13:20:16 PDT"]
[Termination "Gordima won by resignation"]

1. Nf3 {[%clk 0:03:02]} 1... Nf6 {[%clk 0:03:00.6]} 2. c4 {[%clk 0:03:03.1]}
2... g6 {[%clk 0:03:01.9]} 3. Nc3 {[%clk 0:03:04.3]} 3... d5 {[%clk 0:03:03]} 4.
cxd5 {[%clk 0:03:05.1]} 4... Nxd5 {[%clk 0:03:04.1]} 5. e3 {[%clk 0:03:04.6]}
5... Bg7 {[%clk 0:03:03.5]} 6. Bc4 {[%clk 0:03:01.5]} 6... Nxc3 {[%clk
0:02:54.6]} 7. bxc3 {[%clk 0:03:02.4]} 7... O-O {[%clk 0:02:54.9]} 8. O-O {[%clk
0:02:55.7]} 8... a6 {[%clk 0:02:55.7]} 9. a4 {[%clk 0:02:55.6]} 9... Bd7 {[%clk
0:02:34.6]} 10. a5 {[%clk 0:02:53.9]} 10... Bc6 {[%clk 0:02:33.6]} 11. d4 {[%clk
0:02:53.7]} 11... e6 {[%clk 0:02:34.2]} 12. Ba3 {[%clk 0:02:52.2]} 12... Re8
{[%clk 0:02:34.4]} 13. Qe2 {[%clk 0:02:49.3]} 13... Nd7 {[%clk 0:02:28.3]} 14.
e4 {[%clk 0:02:45.3]} 14... Nf6 {[%clk 0:02:25.9]} 15. Bd3 {[%clk 0:02:39.6]}
15... Nd7 {[%clk 0:02:07.2]} 16. Rab1 {[%clk 0:02:36.5]} 16... b5 {[%clk
0:02:00.4]} 17. axb6 {[%clk 0:02:33]} 17... cxb6 {[%clk 0:01:59]} 18. e5 {[%clk
0:02:25.2]} 18... b5 {[%clk 0:01:40.5]} 19. Nd2 {[%clk 0:02:20.4]} 19... Nb6
{[%clk 0:01:26]} 20. Rbc1 {[%clk 0:02:03]} 20... Bd5 {[%clk 0:01:15.1]} 21. f3
{[%clk 0:01:49.9]} 21... Bh6 {[%clk 0:01:12.9]} 22. Rcd1 {[%clk 0:01:37.3]}
22... Bxd2 {[%clk 0:01:12.7]} 23. Qxd2 {[%clk 0:01:34.4]} 23... Nc4 {[%clk
0:01:12.9]} 24. Bxc4 {[%clk 0:01:35.4]} 24... Bxc4 {[%clk 0:01:13.8]} 25. Rfe1
{[%clk 0:01:36]} 25... Kg7 {[%clk 0:01:06.3]} 26. Re4 {[%clk 0:01:34.2]} 26...
Bd5 {[%clk 0:01:02.6]} 27. Rg4 {[%clk 0:01:28.1]} 27... Rc8 {[%clk 0:00:52.5]}
28. Bc1 {[%clk 0:01:16.4]} 28... h5 {[%clk 0:00:38]} 29. Qh6+ {[%clk 0:01:15.5]}
29... Kg8 {[%clk 0:00:38.2]} 30. Bg5 {[%clk 0:00:44.7]} 30... Bxf3 {[%clk
0:00:25]} 31. Bf6 {[%clk 0:00:37.2]} 1-0

[Event "*** Qualifier 4: Titled Tuesday 3|2 Blitz"]
[Site "Chess.com"]
[Date "2017.04.25"]
[Round "2"]
[White "rasool78"]
[Black "VMikhalevski"]
[Result "0-1"]
[WhiteElo "2237"]
[BlackElo "2541"]
[TimeControl "180+2"]
[EndTime "13:20:42 PDT"]
[Termination "VMikhalevski won on time"]

1. e4 {[%clk 0:03:02]} 1... e5 {[%clk 0:03:00.2]} 2. Nf3 {[%clk 0:03:01.7]} 2...
Nc6 {[%clk 0:03:01.6]} 3. Bc4 {[%clk 0:03:01.8]} 3... Nf6 {[%clk 0:03:01.2]} 4.
d3 {[%clk 0:02:58]} 4... Be7 {[%clk 0:02:59.1]} 5. c3 {[%clk 0:02:58.4]} 5...
O-O {[%clk 0:02:58.7]} 6. Bb3 {[%clk 0:02:59.5]} 6... d5 {[%clk 0:02:57.8]} 7.
Nbd2 {[%clk 0:02:55.8]} 7... h6 {[%clk 0:02:54.9]} 8. O-O {[%clk 0:02:50.3]}
8... Be6 {[%clk 0:02:55.5]} 9. Qe2 {[%clk 0:02:38.3]} 9... Re8 {[%clk
0:02:48.7]} 10. Re1 {[%clk 0:02:21.6]} 10... Bf8 {[%clk 0:02:43.9]} 11. h3
{[%clk 0:01:46.2]} 11... Qd7 {[%clk 0:02:39.3]} 12. Ba4 {[%clk 0:01:22.1]} 12...
Bd6 {[%clk 0:02:27.1]} 13. Nf1 {[%clk 0:01:11.7]} 13... a6 {[%clk 0:02:23.7]}
14. Ng3 {[%clk 0:01:03.8]} 14... b5 {[%clk 0:02:14.5]} 15. Bc2 {[%clk
0:01:00.6]} 15... Rad8 {[%clk 0:02:12]} 16. Nh4 {[%clk 0:00:57.5]} 16... Bf8
{[%clk 0:02:00.7]} 17. Nhf5 {[%clk 0:00:56.5]} 17... Kh8 {[%clk 0:01:51.4]} 18.
Qf3 {[%clk 0:00:56.8]} 18... Ng8 {[%clk 0:01:51.4]} 19. exd5 {[%clk 0:00:19.7]}
19... Bxd5 {[%clk 0:01:45.9]} 20. Qg4 {[%clk 0:00:14.3]} 20... g6 {[%clk
0:01:42.1]} 21. Ne3 {[%clk 0:00:13.8]} 21... f5 {[%clk 0:01:39.3]} 22. Qe2
{[%clk 0:00:03.3]} 22... Bf7 {[%clk 0:01:38.2]} 23. Nef1 {[%clk 0:00:03.3]}
23... Bg7 {[%clk 0:01:34.5]} 24. Nh1 {[%clk 0:00:04.1]} 24... Nf6 {[%clk
0:01:33]} 25. Nhg3 {[%clk 0:00:04.5]} 25... Nd5 {[%clk 0:01:32.8]} 26. Bd2
{[%clk 0:00:04.7]} 26... Nf4 {[%clk 0:01:31.6]} 27. Qd1 {[%clk 0:00:05.1]} 27...
Nxd3 {[%clk 0:01:31]} 28. Bxd3 {[%clk 0:00:05.5]} 28... Qxd3 {[%clk 0:01:31.8]}
29. a4 {[%clk 0:00:05]} 29... e4 {[%clk 0:01:14.9]} 30. axb5 {[%clk 0:00:05.9]}
30... axb5 {[%clk 0:01:15]} 31. Re3 {[%clk 0:00:06.6]} 31... Qd5 {[%clk
0:01:11.6]} 32. Re1 {[%clk 0:00:06]} 32... Ne5 {[%clk 0:01:11.4]} 33. Qc2 {[%clk
0:00:04.8]} 33... Nd3 {[%clk 0:01:10.4]} 34. Re2 {[%clk 0:00:05.6]} 34... f4
{[%clk 0:01:07.7]} 35. Nh1 {[%clk 0:00:04.5]} 35... g5 {[%clk 0:01:06]} 36. Ra7
{[%clk 0:00:03.6]} 36... Bh5 {[%clk 0:01:04]} 0-1

[Event "*** Qualifier 4: Titled Tuesday 3|2 Blitz"]
[Site "Chess.com"]
[Date "2017.04.25"]
[Round "2"]
[White "dolynachess"]
[Black "GM_Huschenbeth"]
[Result "0-1"]
[WhiteElo "2355"]
[BlackElo "2306"]
[TimeControl "180+2"]
[EndTime "13:20:48 PDT"]
[Termination "GM_Huschenbeth won on time"]

1. c4 {[%clk 0:03:02]} 1... c5 {[%clk 0:03:00.8]} 2. g3 {[%clk 0:03:03.4]} 2...
g6 {[%clk 0:03:01.8]} 3. Bg2 {[%clk 0:03:04.8]} 3... Bg7 {[%clk 0:03:03.7]} 4.
Nf3 {[%clk 0:03:05.9]} 4... Nc6 {[%clk 0:03:04.2]} 5. O-O {[%clk 0:03:07.5]}
5... e6 {[%clk 0:03:05.5]} 6. Nc3 {[%clk 0:03:09.1]} 6... Nge7 {[%clk
0:03:07.1]} 7. a3 {[%clk 0:03:09.9]} 7... O-O {[%clk 0:03:08.3]} 8. Rb1 {[%clk
0:03:11.5]} 8... d5 {[%clk 0:03:09.3]} 9. cxd5 {[%clk 0:03:12.7]} 9... exd5
{[%clk 0:03:11.2]} 10. d3 {[%clk 0:03:14.1]} 10... d4 {[%clk 0:03:10.9]} 11. Ne4
{[%clk 0:03:11.5]} 11... b6 {[%clk 0:03:11.6]} 12. b4 {[%clk 0:03:11.9]} 12...
cxb4 {[%clk 0:03:12.3]} 13. axb4 {[%clk 0:03:13]} 13... Nd5 {[%clk 0:03:13.2]}
14. b5 {[%clk 0:03:12.3]} 14... Na5 {[%clk 0:03:14.5]} 15. Ba3 {[%clk
0:03:03.9]} 15... Re8 {[%clk 0:03:15.4]} 16. Qd2 {[%clk 0:02:41.7]} 16... Nc3
{[%clk 0:02:59.9]} 17. Nxc3 {[%clk 0:02:34.6]} 17... dxc3 {[%clk 0:03:01.8]} 18.
Qc2 {[%clk 0:02:35.6]} 18... Bb7 {[%clk 0:02:58.1]} 19. Bb4 {[%clk 0:02:06.6]}
19... Rc8 {[%clk 0:02:58.6]} 20. Rfc1 {[%clk 0:02:06.2]} 20... Qf6 {[%clk
0:02:46.9]} 21. Ra1 {[%clk 0:01:57.5]} 21... Qe6 {[%clk 0:02:08.4]} 22. Bxa5
{[%clk 0:01:24.8]} 22... bxa5 {[%clk 0:02:06.4]} 23. Ng5 {[%clk 0:01:25.6]}
23... Qd7 {[%clk 0:02:07.3]} 24. Bxb7 {[%clk 0:01:14.6]} 24... Qxb7 {[%clk
0:02:09.2]} 25. Rxa5 {[%clk 0:01:14.5]} 25... Re5 {[%clk 0:02:00]} 26. Nf3
{[%clk 0:00:49.4]} 26... Rxb5 {[%clk 0:02:00.2]} 27. Ra2 {[%clk 0:00:36.6]}
27... Rb8 {[%clk 0:01:20.9]} 28. d4 {[%clk 0:00:21]} 28... Rb2 {[%clk
0:01:21.7]} 29. Rxb2 {[%clk 0:00:18.1]} 29... cxb2 {[%clk 0:01:22]} 30. Rb1
{[%clk 0:00:19]} 30... a5 {[%clk 0:01:14.5]} 31. h4 {[%clk 0:00:19.2]} 31... Qb4
{[%clk 0:01:03.2]} 32. e3 {[%clk 0:00:18.3]} 32... a4 {[%clk 0:01:04]} 33. Ne1
{[%clk 0:00:12]} 33... a3 {[%clk 0:01:04.2]} 34. Nd3 {[%clk 0:00:13.1]} 34...
Qb3 {[%clk 0:01:04.4]} 35. Qc7 {[%clk 0:00:06.8]} 35... a2 {[%clk 0:00:57.6]}
0-1

[Event "*** Qualifier 4: Titled Tuesday 3|2 Blitz"]
[Site "Chess.com"]
[Date "2017.04.25"]
[Round "2"]
[White "GMOratovsky"]
[Black "politeplayer"]
[Result "0-1"]
[WhiteElo "2300"]
[BlackElo "2171"]
[TimeControl "180+2"]
[EndTime "13:20:53 PDT"]
[Termination "politeplayer won by resignation"]

1. e4 {[%clk 0:03:02]} 1... c6 {[%clk 0:02:57.2]} 2. d4 {[%clk 0:03:00.4]} 2...
d5 {[%clk 0:02:57.6]} 3. Nd2 {[%clk 0:03:02]} 3... dxe4 {[%clk 0:02:55.1]} 4.
Nxe4 {[%clk 0:03:03.9]} 4... Nf6 {[%clk 0:02:54.9]} 5. Nxf6+ {[%clk 0:03:04]}
5... exf6 {[%clk 0:02:55.6]} 6. c3 {[%clk 0:03:02.4]} 6... Bd6 {[%clk
0:02:55.8]} 7. Bd3 {[%clk 0:03:01]} 7... O-O {[%clk 0:02:55.8]} 8. Ne2 {[%clk
0:03:00.3]} 8... Qc7 {[%clk 0:02:51]} 9. h3 {[%clk 0:02:51.6]} 9... Re8 {[%clk
0:02:47.9]} 10. O-O {[%clk 0:02:52]} 10... Nd7 {[%clk 0:02:48.6]} 11. Qc2 {[%clk
0:02:49.5]} 11... Nf8 {[%clk 0:02:47.6]} 12. f4 {[%clk 0:02:46.3]} 12... c5
{[%clk 0:02:42.4]} 13. dxc5 {[%clk 0:02:44.5]} 13... Qxc5+ {[%clk 0:02:35.2]}
14. Kh1 {[%clk 0:02:44.7]} 14... Qh5 {[%clk 0:02:29.2]} 15. Ng3 {[%clk
0:02:42.1]} 15... Qh4 {[%clk 0:02:25.9]} 16. Nf5 {[%clk 0:02:34.2]} 16... Bxf5
{[%clk 0:02:09.9]} 17. Bxf5 {[%clk 0:02:36.1]} 17... Re1 {[%clk 0:01:59.5]} 18.
Rxe1 {[%clk 0:02:02.3]} 18... Qxe1+ {[%clk 0:01:58]} 19. Kh2 {[%clk 0:02:03.8]}
19... Bxf4+ {[%clk 0:01:43.4]} 20. Bxf4 {[%clk 0:02:01.8]} 20... Qxa1 {[%clk
0:01:44.8]} 21. a3 {[%clk 0:01:48.3]} 21... Qf1 {[%clk 0:01:34]} 22. Bg3 {[%clk
0:01:49.2]} 22... Rd8 {[%clk 0:01:31.7]} 23. Bg4 {[%clk 0:01:32.6]} 23... Qd3
{[%clk 0:01:19.4]} 24. Qb3 {[%clk 0:01:32.3]} 24... Ng6 {[%clk 0:01:12.6]} 25.
Qxb7 {[%clk 0:01:28.1]} 25... f5 {[%clk 0:01:13.1]} 26. Bf3 {[%clk 0:01:22.6]}
26... f4 {[%clk 0:01:11]} 27. Bf2 {[%clk 0:01:23.7]} 27... Ne5 {[%clk
0:01:08.3]} 28. Bxa7 {[%clk 0:01:22.6]} 28... Nxf3+ {[%clk 0:01:05.9]} 29. Qxf3
{[%clk 0:01:22.7]} 29... Qxf3 {[%clk 0:01:05.8]} 30. gxf3 {[%clk 0:01:24.6]}
30... Rd2+ {[%clk 0:01:06.9]} 31. Kg1 {[%clk 0:01:26.1]} 31... Rxb2 {[%clk
0:01:07.9]} 32. Bc5 {[%clk 0:01:25.4]} 32... f6 {[%clk 0:01:03.7]} 33. Bb4
{[%clk 0:01:23]} 33... Kf7 {[%clk 0:01:03.6]} 34. a4 {[%clk 0:01:24.3]} 34...
Ke6 {[%clk 0:01:04.5]} 35. Kf1 {[%clk 0:01:25.7]} 35... Kd5 {[%clk 0:01:04.7]}
36. a5 {[%clk 0:01:24.4]} 36... g6 {[%clk 0:01:02.1]} 37. Ke1 {[%clk 0:01:19.4]}
37... Rh2 {[%clk 0:00:57.8]} 38. Kd1 {[%clk 0:01:10]} 38... Rxh3 {[%clk
0:00:56.1]} 39. a6 {[%clk 0:01:10.7]} 39... Rh1+ {[%clk 0:00:53.3]} 40. Kc2
{[%clk 0:01:08.9]} 40... Ra1 {[%clk 0:00:54.2]} 41. Kb3 {[%clk 0:01:10.8]} 41...
Rxa6 {[%clk 0:00:54]} 42. Be7 {[%clk 0:01:12.4]} 42... Rb6+ {[%clk 0:00:52.6]}
43. Kc2 {[%clk 0:01:13.7]} 43... Kc4 {[%clk 0:00:52.4]} 44. Bd8 {[%clk
0:01:15.6]} 44... Re6 {[%clk 0:00:51.9]} 45. Bc7 {[%clk 0:01:15.9]} 45... Re2+
{[%clk 0:00:50.7]} 46. Kd1 {[%clk 0:01:17.3]} 46... Rf2 {[%clk 0:00:50]} 47.
Bxf4 {[%clk 0:01:19.2]} 47... Rxf3 {[%clk 0:00:50.9]} 48. Bh6 {[%clk 0:01:20.7]}
48... g5 {[%clk 0:00:51.2]} 49. Bg7 {[%clk 0:01:22.6]} 49... Rf2 {[%clk
0:00:51.5]} 50. Ke1 {[%clk 0:01:23]} 50... Ra2 {[%clk 0:00:52.1]} 51. Bxf6
{[%clk 0:01:24.2]} 51... g4 {[%clk 0:00:53.1]} 52. Kf1 {[%clk 0:01:25]} 52...
Kd3 {[%clk 0:00:52]} 53. c4 {[%clk 0:01:24.5]} 53... Kxc4 {[%clk 0:00:49.9]} 54.
Be5 {[%clk 0:01:25.7]} 54... Kd3 {[%clk 0:00:49.7]} 55. Kg1 {[%clk 0:01:26.3]}
55... Ke4 {[%clk 0:00:49.3]} 0-1

[Event "*** Qualifier 4: Titled Tuesday 3|2 Blitz"]
[Site "Chess.com"]
[Date "2017.04.25"]
[Round "2"]
[White "gumersindo"]
[Black "popov_m"]
[Result "0-1"]
[WhiteElo "2264"]
[BlackElo "2412"]
[TimeControl "180+2"]
[EndTime "13:21:00 PDT"]
[Termination "popov_m won on time"]

1. d4 {[%clk 0:03:02]} 1... g6 {[%clk 0:03:01.2]} 2. c4 {[%clk 0:03:00.4]} 2...
Bg7 {[%clk 0:03:02.2]} 3. Nf3 {[%clk 0:03:01.2]} 3... Nf6 {[%clk 0:03:02.9]} 4.
Nc3 {[%clk 0:03:01.2]} 4... O-O {[%clk 0:03:03.9]} 5. e4 {[%clk 0:03:02.3]} 5...
d6 {[%clk 0:03:05.2]} 6. Be2 {[%clk 0:03:02.8]} 6... e5 {[%clk 0:03:05.4]} 7.
O-O {[%clk 0:03:02.6]} 7... Nc6 {[%clk 0:03:05]} 8. d5 {[%clk 0:03:03.5]} 8...
Ne7 {[%clk 0:03:06.3]} 9. Ne1 {[%clk 0:03:03.4]} 9... Nd7 {[%clk 0:03:05.9]} 10.
Nd3 {[%clk 0:03:02.7]} 10... f5 {[%clk 0:03:05.9]} 11. Bd2 {[%clk 0:03:01.9]}
11... fxe4 {[%clk 0:03:01.5]} 12. Nxe4 {[%clk 0:03:02.5]} 12... Nf5 {[%clk
0:03:03.2]} 13. f3 {[%clk 0:03:01.5]} 13... Nd4 {[%clk 0:02:57.3]} 14. Re1
{[%clk 0:02:48.2]} 14... Nf6 {[%clk 0:02:38.3]} 15. Ndf2 {[%clk 0:02:42.9]}
15... Nh5 {[%clk 0:02:27.3]} 16. Bd3 {[%clk 0:02:34.1]} 16... Nf4 {[%clk
0:02:25.4]} 17. Bxf4 {[%clk 0:02:33.7]} 17... Rxf4 {[%clk 0:02:26.2]} 18. Rc1
{[%clk 0:02:26.9]} 18... b6 {[%clk 0:02:24.8]} 19. b4 {[%clk 0:02:26.2]} 19...
a5 {[%clk 0:02:25]} 20. a3 {[%clk 0:02:27.1]} 20... axb4 {[%clk 0:02:26.1]} 21.
axb4 {[%clk 0:02:29]} 21... Bb7 {[%clk 0:01:24.1]} 22. Nh3 {[%clk 0:01:59.3]}
22... Rf8 {[%clk 0:01:15]} 23. Neg5 {[%clk 0:01:37.9]} 23... Qd7 {[%clk
0:01:04.6]} 24. f4 {[%clk 0:01:25.6]} 24... exf4 {[%clk 0:00:40.8]} 25. Nxh7
{[%clk 0:01:02.7]} 25... f3 {[%clk 0:00:21.9]} 26. Nxf8 {[%clk 0:00:58.4]} 26...
Rxf8 {[%clk 0:00:23.8]} 27. Qd2 {[%clk 0:00:19.2]} 27... Qg4 {[%clk 0:00:20.7]}
28. Be4 {[%clk 0:00:17.3]} 28... Bh6 {[%clk 0:00:15.2]} 29. Qf2 {[%clk
0:00:11.3]} 29... Bxc1 {[%clk 0:00:14.6]} 30. g3 {[%clk 0:00:03.6]} 30... Ne2+
{[%clk 0:00:14.6]} 31. Rxe2 {[%clk 0:00:04.3]} 31... fxe2 {[%clk 0:00:15.7]} 0-1

[Event "*** Qualifier 4: Titled Tuesday 3|2 Blitz"]
[Site "Chess.com"]
[Date "2017.04.25"]
[Round "2"]
[White "roldieyi"]
[Black "EgorGeroev"]
[Result "0-1"]
[WhiteElo "2125"]
[BlackElo "2433"]
[TimeControl "180+2"]
[EndTime "13:21:06 PDT"]
[Termination "EgorGeroev won by checkmate"]

1. d4 {[%clk 0:02:59.3]} 1... Nf6 {[%clk 0:03:00.2]} 2. Nf3 {[%clk 0:03:00.1]}
2... g6 {[%clk 0:02:59.7]} 3. c4 {[%clk 0:03:00.7]} 3... Bg7 {[%clk 0:03:00.3]}
4. Nc3 {[%clk 0:03:02]} 4... d5 {[%clk 0:03:01.3]} 5. e3 {[%clk 0:02:57.2]} 5...
O-O {[%clk 0:03:00.7]} 6. Be2 {[%clk 0:02:57]} 6... e6 {[%clk 0:03:00.4]} 7. O-O
{[%clk 0:02:56.8]} 7... b6 {[%clk 0:03:01.3]} 8. a3 {[%clk 0:02:57.2]} 8... c5
{[%clk 0:02:58.7]} 9. Ne5 {[%clk 0:02:55.6]} 9... Bb7 {[%clk 0:02:58.5]} 10. Bf3
{[%clk 0:02:56]} 10... Nbd7 {[%clk 0:02:42]} 11. Nxd7 {[%clk 0:02:53.4]} 11...
Qxd7 {[%clk 0:02:41.1]} 12. dxc5 {[%clk 0:02:53.3]} 12... bxc5 {[%clk 0:02:43]}
13. cxd5 {[%clk 0:02:51.2]} 13... exd5 {[%clk 0:02:42.9]} 14. Qb3 {[%clk
0:02:48.7]} 14... Rab8 {[%clk 0:02:39.3]} 15. Rd1 {[%clk 0:02:46.8]} 15... Bc6
{[%clk 0:02:19.5]} 16. Qa2 {[%clk 0:02:47]} 16... Rfd8 {[%clk 0:02:16.5]} 17.
Ne4 {[%clk 0:02:10.6]} 17... dxe4 {[%clk 0:01:39.2]} 18. Rxd7 {[%clk 0:02:09.7]}
18... Rxd7 {[%clk 0:01:41.1]} 19. Be2 {[%clk 0:02:10.9]} 19... Bd5 {[%clk
0:01:42.8]} 20. Qb1 {[%clk 0:02:04.6]} 20... Bb3 {[%clk 0:01:43.6]} 21. f3
{[%clk 0:01:50]} 21... Rbd8 {[%clk 0:01:36.7]} 22. fxe4 {[%clk 0:01:41]} 22...
Rd1+ {[%clk 0:01:37.2]} 23. Bxd1 {[%clk 0:01:26.3]} 23... Rxd1+ {[%clk
0:01:39.1]} 24. Kf2 {[%clk 0:01:27.7]} 24... Ng4+ {[%clk 0:01:38.1]} 25. Ke2
{[%clk 0:01:21.4]} 25... Ne5 {[%clk 0:01:33.3]} 26. a4 {[%clk 0:01:14.4]} 26...
c4 {[%clk 0:01:22.8]} 27. a5 {[%clk 0:01:01.8]} 27... Nd3 {[%clk 0:01:16.8]} 28.
a6 {[%clk 0:00:43.3]} 28... Re1+ {[%clk 0:01:12.5]} 29. Kf3 {[%clk 0:00:43.6]}
29... Rf1+ {[%clk 0:00:55.1]} 30. Kg4 {[%clk 0:00:35.2]} 30... h5+ {[%clk
0:00:43.8]} 31. Kh3 {[%clk 0:00:32.1]} 31... Nf2+ {[%clk 0:00:44.6]} 32. Kg3
{[%clk 0:00:32.4]} 32... Be5+ {[%clk 0:00:45.5]} 33. Kh4 {[%clk 0:00:27.9]}
33... Bf6+ {[%clk 0:00:46]} 34. Kg3 {[%clk 0:00:28.4]} 34... h4+ {[%clk
0:00:46.9]} 35. Kf4 {[%clk 0:00:27.2]} 35... Nd3+ {[%clk 0:00:46.1]} 36. Kg4
{[%clk 0:00:27.4]} 36... Bd1+ {[%clk 0:00:48]} 37. Kh3 {[%clk 0:00:27.6]} 37...
Nf2# {[%clk 0:00:49.9]} 0-1